Cogmind - Beta 14 @@@ ROGUE MODE // 2024.08.08 @ 13:57:27 Player: P9H Result: Destroyed by X-57 Shotgunner with Shotgun Performance ------------- Evolutions (2) 1000 Regions Visited (3) 600 Robots Destroyed (28) 140 Value Destroyed (704) 704 Prototype IDs (0) 0 Alien Tech Used (0) 0 Bonus (0) 0 TOTAL SCORE: 2444 Bonus ------- None Cogmind --------- Core Integrity 0/550 Matter 300/300 Energy 64/100 System Corruption 0% Temperature Cool (0) Movement Rolling (80) Location -8/Materials Parts ------- > --- POWER (3) -------- (None) > --- PROPULSION (2) --- Wheel > --- UTILITY (3) ------ Small Storage Unit > --- WEAPON (3) ------- (None) > --- INVENTORY (8) ---- Light Ion Engine Improved Heat Sink Advanced Heat Sink Cooling System Targeting Computer Propulsion Shielding Peak State ------------ > --- POWER ------------ Improved Ion Engine Light Nuclear Core > --- PROPULSION ------- Compact Wheel Compact Wheel > --- UTILITY ---------- Improved Heat Sink Small Storage Unit Large Matter Pod > --- WEAPON ----------- Particle Cannon Heavy Assault Rifle Heavy Assault Rifle > --- INVENTORY -------- Improved Heat Sink Advanced Heat Sink Cooling System Targeting Computer Propulsion Shielding Hardened Light Armor Plating Beam Rifle Ion Cannon [Rating: 19] Favorites ----------- Power Light Ion Engine Engine Light Ion Engine Power Core Light Nuclear Core Propulsion Compact Wheel Treads Light Treads Wheel Compact Wheel Utility Small Storage Unit Device Heat Sink Storage Small Storage Unit Protection Hardened Light Armor Plating Weapon Light Assault Rifle Energy Gun EM Pulse Gun Energy Cannon Particle Cannon Ballistic Gun Light Assault Rifle Build | -11 -10 -9 -8 ------- Run | Yrd Mat Mat Mat Slots Evolved 4 | . . 2 2 Power 2 | . . 1 1 Propulsion . | . . . . Utility 1 | . . 1 . Weapon 1 | . . . 1 Parts Attached 32 | 6 3 9 14 Power 8 | 1 1 4 2 Engine 7 | 1 1 4 1 Core 1 | . . . 1 Reactor . | . . . . Propulsion 5 | 2 1 . 2 Treads 1 | . 1 . . Leg . | . . . . Wheel 4 | 2 . . 2 Hover . | . . . . Flight . | . . . . Utility 7 | 1 1 1 4 Device 2 | . . 1 1 Storage 2 | 1 1 . . Processor . | . . . . Hackware . | . . . . Protection 3 | . . . 3 Artifact . | . . . . Weapon 12 | 2 . 4 6 Energy Gun 5 | 1 . 2 2 Energy Cannon 2 | . . . 2 Ballistic Gun 5 | 1 . 2 2 Ballistic Cannon . | . . . . Launcher . | . . . . Special Weapon . | . . . . Impact Weapon . | . . . . Slashing Weapon . | . . . . Piercing Weapon . | . . . . Special Melee Weapon . | . . . . Unidentified Prototypes . | . . . . Parts Lost 21 | . 2 4 15 Power 7 | . 1 2 4 Propulsion 4 | . 1 1 2 Utility 4 | . . . 4 Weapon 6 | . . 1 5 Highest Loss Streak 13 | . 1 2 13 To Critical Strikes . | . . . . Average Slot Usage (%) 89 | . 98 93 68 Engine 14 | . 13 17 8 Treads 6 | . 4 9 . Wheel 14 | . 23 11 10 Device 7 | . . 11 7 Storage 22 | . 26 22 16 Energy Gun 9 | . 14 10 2 Energy Cannon 1 | . . . 7 Ballistic Gun 11 | . 14 11 11 Peak Build Rating 19 | 6 8 13 19 Average Rating 9 | 3 7 9 13 On Entrance 6 | . 6 8 12 Naked Turns . | . . . . Heaviest Build 31 | 11 14 27 31 Greatest Support 32 | 26 26 20 32 Greatest Overweight (x) 7 | . . 1 7 Average Overweight (x) . | . . . . Largest Inventory Capacity 8 | 8 8 8 8 Average Capacity 7 | 6 8 8 8 Most Carried 8 | 5 8 8 8 Average Carried 6 | 2 7 6 7 Final Capacity 8 | 8 8 8 8 Final Carried 8 | 4 8 8 6 Class Distribution -------------------- 70% | Mutant 11% | Scavenger-Gunner 11% | Scavenger-Mutant 6% | Gunner Dominant Class ---------------- Mutant | -10/Materials Mutant | -9/Materials Scavenger-Gunner | -8/Materials Resources | -11 -10 -9 -8 ----------- Run | Yrd Mat Mat Mat Matter Collected 804 | 230 213 170 191 Remotely . | . . . . Salvage Created 943 | . 273 382 288 Parts 62 | . 20 27 15 Haulers Intercepted 1 | . . 1 . Recyclers Shooed . | . . . . Parts Field Recycled . | . . . . Retrieved Matter . | . . . . Parts Self-Destructed . | . . . . Prevented . | . . . . Kills | -11 -10 -9 -8 ------- Run | Yrd Mat Mat Mat Combat Hostiles Destroyed 21 | . 6 11 4 Guns 18 | . 5 10 3 Cannons 1 | . . . 1 AOE 2 | . 1 1 . Classes Destroyed 8 | . 4 3 1 Builder 2 | . 1 1 . Hauler 1 | . . 1 . Recycler 1 | . . . 1 Operator 1 | . 1 . . Watcher 2 | . . 1 1 Swarmer 8 | . 1 7 . Grunt 11 | . 5 2 4 Sentry 2 | . . 2 . Best Kill Streak 5 | . 5 4 3 Combat Bots Only 4 | . 4 3 3 Max Kills in Single Turn 1 | . 1 1 1 Gunslinging . | . . . . Exploded 1 | . 1 1 . Melee . | . . . . Uniques/NPCs Destroyed . | . . . . Combat | -11 -10 -9 -8 -------- Run | Yrd Mat Mat Mat Hostile Shots Fired 275 | . 15 66 194 Missed 96 | . 4 16 76 Damage Taken 2555 | . 199 497 1859 Core 628 | . 12 66 550 Absorbed by Shields . | . . . . Redirected to Shielding 43 | . . . 43 Core Remaining (%) 92 | 100 95 83 . Volleys Fired 97 | . 13 49 35 Largest 3 | . 2 2 3 Hottest 147 | . 60 79 147 Shots Fired 205 | . 26 94 85 Gun 175 | . 26 94 55 Cannon 30 | . . . 30 Launcher . | . . . . Special . | . . . . Kinetic 109 | . 13 49 47 Thermal 80 | . . 42 38 Explosive . | . . . . Electromagnetic 16 | . 13 3 . Robot Hit Streak 14 | . 14 7 5 Robot Miss Streak 4 | . 1 3 4 Penetration Max . | . . . . Secondary Targets 2 | . . 2 . Max Gunslinging Chain 1 | . . 1 . Shots Hit Robots 119 | . 22 52 45 Core Hits 46 | . 13 18 15 Critical Kills . | . . . . Critical Parts Destroyed 1 | . . 1 . Critical Strikes 3 | . . 3 . Burn 2 | . . 2 . Destroy 1 | . . 1 . Melee Attacks . | . . . . Impact . | . . . . Slashing . | . . . . Piercing . | . . . . Sneak Attacks . | . . . . Combat Hostiles . | . . . . Follow-up Attacks . | . . . . Damage Inflicted 1820 | . 330 654 836 Guns 1286 | . 240 623 423 Cannons 413 | . . . 413 Explosions 121 | . 90 31 . Melee . | . . . . Ramming . | . . . . Kinetic 702 | . 82 269 351 Thermal 939 | . 90 364 485 Explosive . | . . . . Electromagnetic 179 | . 158 21 . Impact . | . . . . Slashing . | . . . . Piercing . | . . . . Highest Corruption . | . . . . Average Corruption . | . . . . Corruption Purged . | . . . . Corruption Blocked . | . . . . Overload Shots . | . . . . Overflow Damage 25 | . . 10 15 Projectiles 15 | . . . 15 Explosions 10 | . . 10 . Melee . | . . . . Knockbacks . | . . . . Impact . | . . . . Kinetic . | . . . . Secondary . | . . . . Self-Inflicted Damage 103 | . 66 37 . Shots 3 | . 2 1 . Rammed . | . . . . Targets Rammed . | . . . . Kicked . | . . . . Crushed . | . . . . Highest Temperature 320 | . 76 72 320 Average Temperature 61 | . 24 14 114 Received Heat Transfer 852 | . 54 96 702 Effects 1 | . . . 1 Energy Bleed 1 | . . . 1 Siege Activations . | . . . . Robots Corrupted . | . . . . Combat Hostiles . | . . . . Parts Fried . | . . . . Impact Corruptions . | . . . . Robots Melted . | . . . . Combat Hostiles . | . . . . Parts Melted 2 | . . 1 1 Heat Transferred 2148 | . 100 1123 925 Parts Sabotaged . | . . . . Parts Stolen . | . . . . Parts Stripped . | . . . . Power Chain Reactions 3 | . 2 1 . Alert | -11 -10 -9 -8 ------- Run | Yrd Mat Mat Mat Peak Influence 384 | . 147 384 210 Initial 117 | . . 61 117 Average 161 | . 79 221 155 Maximum Alert Level 1 | . . 1 1 Low Security (%) 71 | 100 100 44 91 Level 1 28 | . . 55 8 Level 2 . | . . . . Level 3 . | . . . . Level 4 . | . . . . Level 5 . | . . . . High Security . | . . . . Max Security . | . . . . Squads Dispatched 4 | . 2 1 1 Investigation 2 | . 1 1 . Extermination . | . . . . Reinforcement 2 | . 1 . 1 Assault . | . . . . Garrison . | . . . . Intercept . | . . . . Searches Triggered . | . . . . Construction Impeded . | . . . . Haulers Reinforced . | . . . . Active Scanning Responses . | . . . . Cargo Convoy Interrupts . | . . . . Stealth | -11 -10 -9 -8 --------- Run | Yrd Mat Mat Mat Distress Signals 2 | . . 2 . Communications Jammed . | . . . . Distress Signals . | . . . . Times Spotted 37 | . 7 21 9 Peak Tracking Total 5 | . 2 4 5 Tactical Retreats 5 | . . 5 . Traps | -11 -10 -9 -8 ------- Run | Yrd Mat Mat Mat Traps Triggered 4 | . 2 1 1 Indirectly . | . . . . Trap Hack Attempts . | . . . . Triggered . | . . . . Disarmed . | . . . . Reprogrammed . | . . . . Reused . | . . . . Traps Extracted . | . . . . Installed . | . . . . Triggered . | . . . . Machines | -11 -10 -9 -8 ---------- Run | Yrd Mat Mat Mat Machines Disabled 3 | . 1 . 2 Max in Single Turn 1 | . 1 . 1 Machines Repaired . | . . . . Machines Dismantled . | . . . . Machines Sabotaged . | . . . . Overloaded Fab Kills . | . . . . Hacking | -11 -10 -9 -8 --------- Run | Yrd Mat Mat Mat Machines Accessed 1 | . . 1 . Terminals . | . . . . Fabricators . | . . . . Repair Stations . | . . . . Recycling Units . | . . . . Scanalyzers 1 | . . 1 . Garrison Access . | . . . . Total Hacks 1 | . . 1 . Successful . | . . . . Failed 1 | . . 1 . Catastrophic . | . . . . Database Lockouts . | . . . . Manual . | . . . . Terminals . | . . . . Fabricators . | . . . . Repair Stations . | . . . . Recycling Units . | . . . . Scanalyzers 1 | . . 1 . Garrison Access . | . . . . Terminal Hacks . | . . . . Fabricator Hacks . | . . . . Repair Station Hacks . | . . . . Recycling Unit Hacks . | . . . . Scanalyzer . | . . . . Garrison Access Hacks . | . . . . Unauthorized Hacks . | . . . . Terminals . | . . . . Fabricators . | . . . . Repair Stations . | . . . . Recycling Units . | . . . . Scanalyzers . | . . . . Garrison Access . | . . . . Data Cores Recovered . | . . . . Used . | . . . . Hacking Detections 1 | . . 1 . Full Trace Events . | . . . . Feedback Events . | . . . . Feedback Blocked . | . . . . Robot Schematics Acquired . | . . . . Robots Built . | . . . . Authchips . | . . . . Time . | . . . . Total Robot Build Rating . | . . . . Part Schematics Acquired . | . . . . Parts Built . | . . . . Authchips . | . . . . Time . | . . . . Total Part Build Rating . | . . . . Parts Repaired . | . . . . Time . | . . . . Parts Recycled . | . . . . Recycled Matter . | . . . . Retrieved Matter . | . . . . Retrieved Components . | . . . . Parts Scanalyzed . | . . . . Part Schematics Acquired . | . . . . Parts Damaged . | . . . . Bothacking | -11 -10 -9 -8 ------------ Run | Yrd Mat Mat Mat Used RIF Installer . | . . . . Robots Hacked . | . . . . Non-combat . | . . . . Combat . | . . . . Robot Hacks Applied . | . . . . Relay Couplers Released . | . . . . Fabnet Peak Effective % . | . . . . Robots Rewired . | . . . . Allies Hacked . | . . . . Hacks Repelled . | . . . . Allies | -11 -10 -9 -8 -------- Run | Yrd Mat Mat Mat Total Allies . | . . . . Largest Group . | . . . . Highest-Rated Group . | . . . . Highest-Rated Ally . | . . . . Total Orders . | . . . . Ally Attacks . | . . . . Total Damage . | . . . . Kills . | . . . . Allies Corrupted . | . . . . Allies Melted . | . . . . Intel | -11 -10 -9 -8 ------- Run | Yrd Mat Mat Mat Robot Analysis Total . | . . . . Derelict Logs Recovered . | . . . . Drone Launches . | . . . . Drone Recoveries . | . . . . Exploration | -11 -10 -9 -8 ------------- Run | Yrd Mat Mat Mat Turns Passed 1262 | 59 319 614 270 Spaces Moved 697 | 50 236 295 116 Core 11 | 3 . . 8 Treads 300 | . 50 250 . Legs . | . . . . Wheels 386 | 47 186 45 108 Hover . | . . . . Flight . | . . . . Fastest Speed 50 | 50 90 115 80 Average Speed 126 | 87 104 153 116 Slowest Speed 400 | 90 160 240 400 Overloaded Moves . | . . . . Propulsion Burnouts . | . . . . Robots Hopped . | . . . . Cave-ins Triggered . | . . . . Exploration Rate (%) 22 | 3 49 24 13 Regions Visited 3 Branch Regions . Pre-discovered Areas . | . . . . Known Exits Taken . | . . . . Unknown Exits Taken 3 | 1 1 1 . Scrap Searched . | . . . . Spaces Dug . | . . . . Terrain Destroyed 4 | . 2 2 . Melee . | . . . . Projectile . | . . . . AOE 4 | . 2 2 . Terrain Rammed . | . . . . Walls Destroyed . | . . . . Machines Disabled . | . . . . Actions | -11 -10 -9 -8 --------- Run | Yrd Mat Mat Mat Total 906 | 64 285 371 186 Wait 40 | . 23 7 10 Move 694 | 49 235 294 116 Hop . | . . . . Pick Up 33 | 9 9 7 8 Fast Attach 6 | 1 . 2 3 Attach 20 | 5 3 4 8 Detach . | . . . . Swap 6 | . . 3 3 Drop 10 | . 2 5 3 Fire 97 | . 13 49 35 Melee . | . . . . Ram . | . . . . Kick . | . . . . Crush . | . . . . Escape Stasis . | . . . . Rewire . | . . . . Trap . | . . . . Miscellaneous . | . . . . Route ------- -11/Scrapyard -10/Materials -9/Materials -8/Materials History --------- Turn | Location | Event 25 | -11/Scrapyard | Discovered new exit (range 16) 60 | -11/Scrapyard | Entered Materials 304 | -10/Materials | Build established: Mutant 332 | -10/Materials | Discovered new exit (range 5) 379 | -10/Materials | Entered another Materials area 379 | -9/Materials | Evolved 2 slots: Power x1, Utility x1 978 | -9/Materials | Discovered new exit (range 10) 993 | -9/Materials | Entered another Materials area 993 | -8/Materials | Evolved 2 slots: Power x1, Weapon x1 1234 | -8/Materials | Core integrity fell below 50% 1249 | -8/Materials | Core integrity fell below 20% 1263 | -8/Materials | Destroyed by X-57 Shotgunner with Shotgun Last Messages --------------- 01245_ U-05 Engineer destroyed. 01245_ K-01 Serf collects debris. 01248_ Acquired Lgt. Ion Engine. 01249_ Hrd. Light Armor Plating destroyed. 01249_ K-01 Serf collects debris. 01251_ K-01 Serf destroyed. 01252_ Acquired 25 matter. 01253_ G-47 Trooper destroyed. 01253_ U-05 Engineer lays Concrete. 01253_ K-01 Serf collects debris. 01254_ U-05 Engineer lays Concrete. 01256_ K-01 Serf collects debris. 01258_ Acquired Wheel. 01258_ U-05 Engineer lays Concrete. 01258_ Beam Rifle destroyed. 01260_ U-05 Engineer lays Concrete. 01260_ Extracted 10 matter. 01261_ K-01 Serf collects debris. 01261_ U-05 Engineer lays Concrete. 01263_ Core Shielding destroyed. Map ----- +----------------------------------------------------+ | ?????????????????????????????????????????????????? | | ?????????????????????????????????????????????????? | | ?????????????????????????????????????????????????? | | ?????????????????????????????????????????????????? | | ?????????????????????????????????????????????????? | | ?????????????????????????????????????????????????? | | ?????????????????????????????????????????????????? | | ?????????????????????????????????????????????????? | | ?????????????????????????????????????????????????? | | ?????????????????????????????????????????????????? | | ?????????????????????????????????????????????????? | | ?????????????????????????????????????????????????? | | ????????????????????????????????????????########## | | ????????????????????????????????????????# # | | ????????????????????????????????????????# # | | ????????????????????????????????????????# # | | ????????????????????????????????????????# ==[ | | ??????????????????????????H?????????????# # | | ????????????????????????????????????????# # | | ????????????????????????????????????????# ! # | | ????????????????????????????????????????# # | | ?????????????# ?????????????????????????# # | | ?????????##### ??????????########??????########## | | ????????? ##########! ######+########## | | ???????? *%!!! | | ???????? @!=%*!!^ | | ????????????# %%!!!! | | ????????????# ! *!=u* ########### | | ????????????#a """ ""%! !k |%! ^ #?????????# | | ????????????#? """ """ % !=x #?????????# | | ????????????# """ """ ^[ #?????????# | | ????????????# ########??# | | ????????????# % x + ## | | ????????????# """ %"" """ """ #""" ## | | ???????????? ? """ """ """ """ !#??" #? | | ???????????????""" """ """ """ #???? ??? | | ??????????????? #?????????? | | ????????????? #?????????? | | ?????????????#####?########## #?????????? | | ????????????????????????????# #?????????? | | ????????????????????????????+ #?????????? | | ????????????????????????????# #?????????? | | ????????????????????????????# #### #?????????? | | ????????????????????????????# ???# #?????????? | | ????????????????????????????##+#???# #?????????? | | ???????????????????????????????????# #?????????? | | ???????????????????????????????????# #?????????? | | ???????????????????????????????????# ??????????? | | ???????????????????????????????????# ??????????? | | ???????????????????????????????????? ??????????? | +----------------------------------------------------+ Best States ------------- Heat Dissipation 45 Energy Generation 21 Energy Capacity 415 Matter Stores 450 Matter Capacity 450 Sight Range 16 Terrain Scan Density 10 Armor Coverage 150 Core Shielding 20 Evasion (%) 42 Recoil Reduction 1 Item Schematics ----------------- None Robot Schematics ------------------ None Fabricated ------------ Nothing Alien Tech Used ----------------- None Achievements -------------- None Challenges ------------ None Game ------ Seed AutogunGodShifter Manual? 0 Play Time 00:20:14 Cumulative 17.1 hours Start 2024.08.08 @ 12:35:50 End 2024.08.08 @ 13:57:27 Sessions 1 Manual Loads 0 Difficulty Rogue Special Mode None Game No. 36 Rogue 36 Adventurer 0 Explorer 0 Win Type - Total 0 Types 0/0/0/0/0/0/0/0/0 Lore% 4 Gallery% 21 Achievement% 17 Wizard Run 0 Options --------- Layout 1 ASCII 0 Keyboard 0 Movement Mouse Keybinds 0 Fullscreen 2 Font 32/SmallcapsGlow Map View 50x35 Zoom Use 0% Tactical HUD 1 Map Filters NONE Filters NONE Steam 1 RUN: 1b840af8-cf43-4dde-b20a-c951f490c571